[Event "*** Titled Tuesday Blitz"]
[Site "Chess.com"]
[Date "2021.04.27"]
[Round "2"]
[White "YoreDea"]
[Black "TigrVShlyape"]
[Result "0-1"]
[WhiteElo "2560"]
[BlackElo "2839"]
[TimeControl "180+1"]
[EndTime "10:18:18 PDT"]
[Termination "TigrVShlyape won by resignation"]

1. e4 {[%clk 0:02:54.1]} 1... e5 {[%clk 0:02:56.1]} 2. Nf3 {[%clk 0:02:53.2]}
2... Nc6 {[%clk 0:02:55.2]} 3. d4 {[%clk 0:02:51.8]} 3... exd4 {[%clk
0:02:54.1]} 4. Bc4 {[%clk 0:02:52.1]} 4... Nf6 {[%clk 0:02:43.1]} 5. O-O {[%clk
0:02:34.5]} 5... Nxe4 {[%clk 0:02:38.3]} 6. Re1 {[%clk 0:02:34.6]} 6... d5
{[%clk 0:02:35.8]} 7. Bxd5 {[%clk 0:02:34.9]} 7... Qxd5 {[%clk 0:02:35.6]} 8.
Nc3 {[%clk 0:02:35.8]} 8... Qh5 {[%clk 0:02:06]} 9. Nxe4 {[%clk 0:02:34.6]} 9...
Be6 {[%clk 0:02:05.2]} 10. Bg5 {[%clk 0:02:15.3]} 10... h6 {[%clk 0:01:15.4]}
11. Bf6 {[%clk 0:02:13]} 11... Qd5 {[%clk 0:00:55.3]} 12. Nxd4 {[%clk
0:01:51.2]} 12... Nxd4 {[%clk 0:00:54.3]} 13. Qxd4 {[%clk 0:01:45.1]} 13... Qxd4
{[%clk 0:00:54]} 14. Bxd4 {[%clk 0:01:45.1]} 14... O-O-O {[%clk 0:00:54]} 15. c3
{[%clk 0:01:37.7]} 15... b6 {[%clk 0:00:53.2]} 16. b3 {[%clk 0:01:26.7]} 16...
Rg8 {[%clk 0:00:51.4]} 17. Rad1 {[%clk 0:01:23.7]} 17... Be7 {[%clk 0:00:48.9]}
18. f3 {[%clk 0:01:13.6]} 18... Kb7 {[%clk 0:00:47.5]} 19. Kf2 {[%clk
0:01:11.6]} 19... a5 {[%clk 0:00:47.3]} 20. Be3 {[%clk 0:01:10.5]} 20... Rxd1
{[%clk 0:00:45.4]} 21. Rxd1 {[%clk 0:01:10.6]} 21... a4 {[%clk 0:00:45.6]} 22.
c4 {[%clk 0:01:09.1]} 22... axb3 {[%clk 0:00:44.9]} 23. axb3 {[%clk 0:01:09.4]}
23... Ra8 {[%clk 0:00:44.3]} 24. Bd4 {[%clk 0:00:57.8]} 24... Bf8 {[%clk
0:00:43.9]} 25. Ra1 {[%clk 0:00:56.3]} 25... Rd8 {[%clk 0:00:42.2]} 26. Bc3
{[%clk 0:00:56.5]} 26... f5 {[%clk 0:00:40.9]} 27. Nd2 {[%clk 0:00:52.3]} 27...
Bc5+ {[%clk 0:00:40.1]} 28. Ke2 {[%clk 0:00:52.1]} 28... g5 {[%clk 0:00:38.5]}
29. Rd1 {[%clk 0:00:49.4]} 29... Ra8 {[%clk 0:00:32.7]} 30. Ra1 {[%clk
0:00:48.4]} 30... Rd8 {[%clk 0:00:31.5]} 31. Bg7 {[%clk 0:00:46.7]} 31... Rg8
{[%clk 0:00:29.3]} 32. Bf6 {[%clk 0:00:42.6]} 32... Bd6 {[%clk 0:00:29.2]} 33.
g3 {[%clk 0:00:41.3]} 33... h5 {[%clk 0:00:27.9]} 34. Nf1 {[%clk 0:00:32.3]}
34... f4 {[%clk 0:00:27.2]} 35. Kf2 {[%clk 0:00:24.1]} 35... Bh3 {[%clk
0:00:25.2]} 36. Re1 {[%clk 0:00:20]} 36... Rg6 {[%clk 0:00:23.9]} 37. Be5 {[%clk
0:00:18.5]} 37... Bc5+ {[%clk 0:00:24.1]} 38. Ke2 {[%clk 0:00:16.3]} 38... Re6
{[%clk 0:00:24.6]} 39. Kd2 {[%clk 0:00:09.7]} 39... Bxf1 {[%clk 0:00:24.3]} 0-1

[Event "*** Titled Tuesday Blitz"]
[Site "Chess.com"]
[Date "2021.04.27"]
[Round "2"]
[White "BAS8892"]
[Black "GP9isback23"]
[Result "0-1"]
[WhiteElo "2726"]
[BlackElo "2548"]
[TimeControl "180+1"]
[EndTime "10:18:18 PDT"]
[Termination "GP9isback23 won by resignation"]

1. d4 {[%clk 0:03:00.9]} 1... Nf6 {[%clk 0:02:58.7]} 2. Bf4 {[%clk 0:03:00.3]}
2... e6 {[%clk 0:02:58.4]} 3. e3 {[%clk 0:03:00.4]} 3... b6 {[%clk 0:02:58.7]}
4. Nd2 {[%clk 0:02:59.9]} 4... Bb7 {[%clk 0:02:59.1]} 5. c3 {[%clk 0:02:59.7]}
5... Be7 {[%clk 0:02:58.7]} 6. h3 {[%clk 0:02:59.8]} 6... O-O {[%clk 0:02:55.5]}
7. Ngf3 {[%clk 0:02:59.8]} 7... d5 {[%clk 0:02:55.5]} 8. Bd3 {[%clk 0:02:59.8]}
8... c5 {[%clk 0:02:51.3]} 9. Ne5 {[%clk 0:02:59.8]} 9... Nc6 {[%clk 0:02:51.2]}
10. Qf3 {[%clk 0:02:53.3]} 10... Nxe5 {[%clk 0:02:48.7]} 11. dxe5 {[%clk
0:02:52.4]} 11... Nd7 {[%clk 0:02:46.2]} 12. h4 {[%clk 0:02:50.2]} 12... f6
{[%clk 0:02:16.8]} 13. Qg4 {[%clk 0:02:29.5]} 13... f5 {[%clk 0:01:43.5]} 14.
Qg3 {[%clk 0:02:29.2]} 14... c4 {[%clk 0:01:38.7]} 15. Bc2 {[%clk 0:02:27.6]}
15... Kh8 {[%clk 0:01:36.5]} 16. O-O-O {[%clk 0:02:23]} 16... b5 {[%clk
0:01:34.9]} 17. Nf3 {[%clk 0:02:22.9]} 17... b4 {[%clk 0:01:34.1]} 18. cxb4
{[%clk 0:02:22.7]} 18... a5 {[%clk 0:01:32.4]} 19. b5 {[%clk 0:02:21.9]} 19...
a4 {[%clk 0:01:31.7]} 20. a3 {[%clk 0:02:20.5]} 20... c3 {[%clk 0:01:31.5]} 21.
h5 {[%clk 0:02:12.9]} 21... cxb2+ {[%clk 0:01:29.5]} 22. Kb1 {[%clk 0:02:12.8]}
22... Qa5 {[%clk 0:01:05.1]} 23. Nd4 {[%clk 0:02:05.1]} 23... Nc5 {[%clk
0:01:01.4]} 24. e4 {[%clk 0:01:43.2]} 24... dxe4 {[%clk 0:00:50.9]} 25. Bd2
{[%clk 0:01:42.7]} 25... Qb6 {[%clk 0:00:49.7]} 26. Bb4 {[%clk 0:01:42.3]} 26...
Bd5 {[%clk 0:00:49.3]} 27. f3 {[%clk 0:01:24]} 27... e3 {[%clk 0:00:46.8]} 28.
f4 {[%clk 0:01:22]} 28... e2 {[%clk 0:00:38.4]} 29. Rd2 {[%clk 0:01:17]} 29...
Ne4 {[%clk 0:00:36.3]} 30. Bxe4 {[%clk 0:00:59.5]} 30... Bxe4+ {[%clk 0:00:36]}
31. Kxb2 {[%clk 0:00:59.9]} 31... Bxb4 {[%clk 0:00:34.4]} 32. axb4 {[%clk
0:00:59.7]} 32... a3+ {[%clk 0:00:34.1]} 33. Ka1 {[%clk 0:00:58.1]} 33... Rfd8
{[%clk 0:00:31.7]} 34. h6 {[%clk 0:00:49.6]} 34... Ra7 {[%clk 0:00:22.9]} 35.
Nxe6 {[%clk 0:00:25.9]} 35... Rxd2 {[%clk 0:00:18]} 36. hxg7+ {[%clk 0:00:25.3]}
36... Kg8 {[%clk 0:00:18]} 37. Qc3 {[%clk 0:00:16.9]} 37... Rd1+ {[%clk
0:00:17.4]} 38. Ka2 {[%clk 0:00:16.8]} 38... Bd5+ {[%clk 0:00:17.6]} 0-1

[Event "*** Titled Tuesday Blitz"]
[Site "Chess.com"]
[Date "2021.04.27"]
[Round "2"]
[White "riospm"]
[Black "RobertoJBM"]
[Result "1-0"]
[WhiteElo "2531"]
[BlackElo "2716"]
[TimeControl "180+1"]
[EndTime "10:18:18 PDT"]
[Termination "riospm won on time"]

1. e4 {[%clk 0:03:00.9]} 1... c6 {[%clk 0:02:59]} 2. d4 {[%clk 0:03:00.1]} 2...
d5 {[%clk 0:02:53.1]} 3. Nd2 {[%clk 0:03:00.6]} 3... dxe4 {[%clk 0:02:52.3]} 4.
Nxe4 {[%clk 0:03:01.5]} 4... Nd7 {[%clk 0:02:51.6]} 5. Nf3 {[%clk 0:03:00.6]}
5... Ngf6 {[%clk 0:02:51.3]} 6. Nxf6+ {[%clk 0:03:01]} 6... Nxf6 {[%clk
0:02:52.2]} 7. Bc4 {[%clk 0:03:01]} 7... Nd5 {[%clk 0:02:51.8]} 8. h3 {[%clk
0:02:59.4]} 8... Bf5 {[%clk 0:02:50.6]} 9. O-O {[%clk 0:02:59.5]} 9... e6 {[%clk
0:02:48.3]} 10. c3 {[%clk 0:02:59.5]} 10... Be7 {[%clk 0:02:46.4]} 11. Re1
{[%clk 0:02:59.9]} 11... O-O {[%clk 0:02:46]} 12. Qe2 {[%clk 0:03:00.1]} 12...
a5 {[%clk 0:02:43.9]} 13. Ne5 {[%clk 0:02:56.5]} 13... h6 {[%clk 0:02:41.8]} 14.
a3 {[%clk 0:02:50.2]} 14... Rc8 {[%clk 0:02:41.2]} 15. Be3 {[%clk 0:02:41.4]}
15... c5 {[%clk 0:02:36.4]} 16. dxc5 {[%clk 0:02:38.2]} 16... Nxe3 {[%clk
0:02:36]} 17. Qxe3 {[%clk 0:02:37.9]} 17... Bxc5 {[%clk 0:02:36.1]} 18. Qe2
{[%clk 0:02:38]} 18... Qc7 {[%clk 0:02:32.8]} 19. Rad1 {[%clk 0:02:32.3]} 19...
Bd6 {[%clk 0:02:24]} 20. Bb5 {[%clk 0:02:24.9]} 20... Rfd8 {[%clk 0:02:13.8]}
21. Nc4 {[%clk 0:02:14.2]} 21... Bc5 {[%clk 0:02:08.8]} 22. Ne3 {[%clk
0:02:13.4]} 22... Bh7 {[%clk 0:01:55.4]} 23. a4 {[%clk 0:02:11.8]} 23... Rxd1
{[%clk 0:01:43.7]} 24. Rxd1 {[%clk 0:02:11]} 24... Rd8 {[%clk 0:01:44.6]} 25.
Rxd8+ {[%clk 0:02:07.1]} 25... Qxd8 {[%clk 0:01:45.5]} 26. Ng4 {[%clk 0:02:05]}
26... Bf5 {[%clk 0:01:39]} 27. Ne5 {[%clk 0:02:03.5]} 27... f6 {[%clk
0:01:19.2]} 28. Nd7 {[%clk 0:01:48.5]} 28... Qe7 {[%clk 0:01:03.6]} 29. g4
{[%clk 0:01:42]} 29... Bg6 {[%clk 0:00:57]} 30. Nxc5 {[%clk 0:01:40.6]} 30...
Qxc5 {[%clk 0:00:57.9]} 31. Qxe6+ {[%clk 0:01:40.3]} 31... Bf7 {[%clk
0:00:54.9]} 32. Qe3 {[%clk 0:01:31.6]} 32... Qd6 {[%clk 0:00:52.6]} 33. Qd4
{[%clk 0:01:29.1]} 33... Qe7 {[%clk 0:00:49.1]} 34. Kg2 {[%clk 0:01:17.3]} 34...
h5 {[%clk 0:00:46.4]} 35. b4 {[%clk 0:01:16.2]} 35... hxg4 {[%clk 0:00:45.1]}
36. hxg4 {[%clk 0:01:17.1]} 36... axb4 {[%clk 0:00:44.7]} 37. cxb4 {[%clk
0:01:16.5]} 37... f5 {[%clk 0:00:38.4]} 38. f3 {[%clk 0:01:05.6]} 38... fxg4
{[%clk 0:00:38.1]} 39. fxg4 {[%clk 0:01:06]} 39... Qg5 {[%clk 0:00:30.9]} 40.
Kg3 {[%clk 0:00:57]} 40... Qc1 {[%clk 0:00:24.4]} 41. Qd8+ {[%clk 0:00:52.5]}
41... Kh7 {[%clk 0:00:23.1]} 42. Bd3+ {[%clk 0:00:52]} 42... g6 {[%clk
0:00:23.3]} 43. Qd4 {[%clk 0:00:42.9]} 43... Qd2 {[%clk 0:00:20.6]} 44. Bxg6+
{[%clk 0:00:39.2]} 1-0

[Event "*** Titled Tuesday Blitz"]
[Site "Chess.com"]
[Date "2021.04.27"]
[Round "2"]
[White "ChampStan"]
[Black "BvsN"]
[Result "1-0"]
[WhiteElo "2107"]
[BlackElo "2363"]
[TimeControl "180+1"]
[EndTime "10:18:21 PDT"]
[Termination "ChampStan won by checkmate"]

1. e4 {[%clk 0:03:00.9]} 1... c5 {[%clk 0:02:59.9]} 2. Nf3 {[%clk 0:03:00.1]}
2... e6 {[%clk 0:03:00.5]} 3. d4 {[%clk 0:02:58.5]} 3... cxd4 {[%clk 0:03:01.4]}
4. Nxd4 {[%clk 0:02:58.8]} 4... a6 {[%clk 0:03:02]} 5. c4 {[%clk 0:02:55.8]}
5... Nf6 {[%clk 0:03:02]} 6. Nc3 {[%clk 0:02:55.2]} 6... Qc7 {[%clk 0:03:02.4]}
7. f3 {[%clk 0:02:41.9]} 7... Bd6 {[%clk 0:02:54.4]} 8. g3 {[%clk 0:02:23.3]}
8... h5 {[%clk 0:02:46.6]} 9. f4 {[%clk 0:02:04.6]} 9... Bb4 {[%clk 0:02:45.8]}
10. Qf3 {[%clk 0:01:59.5]} 10... b5 {[%clk 0:02:41.6]} 11. Bd2 {[%clk
0:01:24.8]} 11... Bb7 {[%clk 0:02:39.8]} 12. Bd3 {[%clk 0:01:15.3]} 12... bxc4
{[%clk 0:02:34.6]} 13. Bc2 {[%clk 0:01:14]} 13... Nc6 {[%clk 0:02:22.9]} 14.
Nxc6 {[%clk 0:01:01.7]} 14... Qxc6 {[%clk 0:02:22.8]} 15. O-O-O {[%clk
0:01:00.5]} 15... O-O {[%clk 0:02:11.5]} 16. Qe2 {[%clk 0:00:56.8]} 16... Bxc3
{[%clk 0:02:08.5]} 17. Bxc3 {[%clk 0:00:54.9]} 17... Nxe4 {[%clk 0:02:08.1]} 18.
Bd4 {[%clk 0:00:52.2]} 18... g6 {[%clk 0:01:56.7]} 19. Rhe1 {[%clk 0:00:37.3]}
19... d5 {[%clk 0:01:49.5]} 20. g4 {[%clk 0:00:35]} 20... h4 {[%clk 0:01:44]}
21. f5 {[%clk 0:00:20.4]} 21... c3 {[%clk 0:01:43.9]} 22. Qe3 {[%clk 0:00:07.5]}
22... cxb2+ {[%clk 0:01:42]} 23. Kb1 {[%clk 0:00:05]} 23... e5 {[%clk
0:01:32.9]} 24. Bxe5 {[%clk 0:00:04.1]} 24... f6 {[%clk 0:01:21.7]} 25. Bxb2
{[%clk 0:00:03.8]} 25... Rac8 {[%clk 0:01:18.2]} 26. Bb3 {[%clk 0:00:03.8]}
26... Kg7 {[%clk 0:00:49.1]} 27. fxg6 {[%clk 0:00:03.7]} 27... d4 {[%clk
0:00:43.5]} 28. Qxd4 {[%clk 0:00:03.9]} 28... Rfd8 {[%clk 0:00:36.4]} 29. Qxd8
{[%clk 0:00:03.9]} 29... Rxd8 {[%clk 0:00:34.7]} 30. Rxd8 {[%clk 0:00:04.8]}
30... Nc3+ {[%clk 0:00:15.1]} 31. Ka1 {[%clk 0:00:03.2]} 31... a5 {[%clk
0:00:12.6]} 32. Rg8+ {[%clk 0:00:03.2]} 32... Kh6 {[%clk 0:00:11.2]} 33. Bc1#
{[%clk 0:00:03.5]} 1-0

[Event "*** Titled Tuesday Blitz"]
[Site "Chess.com"]
[Date "2021.04.27"]
[Round "2"]
[White "Grandelicious"]
[Black "elextranjero00"]
[Result "1-0"]
[WhiteElo "2840"]
[BlackElo "2562"]
[TimeControl "180+1"]
[EndTime "10:18:22 PDT"]
[Termination "Grandelicious won by resignation"]

1. d4 {[%clk 0:03:00.9]} 1... Nf6 {[%clk 0:02:58.2]} 2. Nf3 {[%clk 0:03:01.2]}
2... e6 {[%clk 0:02:55.9]} 3. Bg5 {[%clk 0:02:59.3]} 3... h6 {[%clk 0:02:54]} 4.
Bh4 {[%clk 0:02:58.6]} 4... b6 {[%clk 0:02:45.1]} 5. Nbd2 {[%clk 0:02:50.2]}
5... c5 {[%clk 0:02:37.3]} 6. e3 {[%clk 0:02:49.8]} 6... cxd4 {[%clk 0:02:36.6]}
7. exd4 {[%clk 0:02:50.7]} 7... Be7 {[%clk 0:02:36.5]} 8. Bd3 {[%clk 0:02:49]}
8... Ba6 {[%clk 0:02:30.5]} 9. Bxa6 {[%clk 0:02:43.6]} 9... Nxa6 {[%clk
0:02:30.2]} 10. O-O {[%clk 0:02:43.8]} 10... O-O {[%clk 0:02:30.1]} 11. Re1
{[%clk 0:02:39.3]} 11... Qc8 {[%clk 0:02:28.1]} 12. Ne4 {[%clk 0:02:34.3]} 12...
Nxe4 {[%clk 0:02:17.5]} 13. Bxe7 {[%clk 0:02:33.6]} 13... Re8 {[%clk 0:02:18.2]}
14. Bh4 {[%clk 0:02:18.5]} 14... Nd6 {[%clk 0:02:17.5]} 15. c3 {[%clk
0:01:55.9]} 15... Nf5 {[%clk 0:02:14.5]} 16. Bg3 {[%clk 0:01:56.4]} 16... Nxg3
{[%clk 0:02:12.5]} 17. hxg3 {[%clk 0:01:57.3]} 17... Qb7 {[%clk 0:02:08.7]} 18.
g4 {[%clk 0:01:56.2]} 18... f6 {[%clk 0:01:44.3]} 19. Nd2 {[%clk 0:01:29.8]}
19... Nc7 {[%clk 0:01:38]} 20. Ne4 {[%clk 0:01:28.4]} 20... Qc6 {[%clk 0:01:37]}
21. Qd3 {[%clk 0:01:24.9]} 21... Nd5 {[%clk 0:01:26]} 22. c4 {[%clk 0:01:13]}
22... Ne7 {[%clk 0:01:03.5]} 23. b3 {[%clk 0:01:02.3]} 23... d5 {[%clk
0:00:48.3]} 24. Nd2 {[%clk 0:01:02.4]} 24... dxc4 {[%clk 0:00:38.5]} 25. bxc4
{[%clk 0:01:03.3]} 25... Rad8 {[%clk 0:00:38.4]} 26. Re3 {[%clk 0:01:00.3]}
26... Qd6 {[%clk 0:00:35.6]} 27. Nf3 {[%clk 0:00:53.3]} 27... Nc6 {[%clk
0:00:35.6]} 28. Rd1 {[%clk 0:00:43.4]} 28... Qf4 {[%clk 0:00:27.2]} 29. Re4
{[%clk 0:00:41.4]} 29... Qd6 {[%clk 0:00:27.4]} 30. Qe2 {[%clk 0:00:37.5]} 30...
Re7 {[%clk 0:00:21.5]} 31. d5 {[%clk 0:00:27.9]} 31... exd5 {[%clk 0:00:17.3]}
32. Rxd5 {[%clk 0:00:28.8]} 32... Qc7 {[%clk 0:00:17.6]} 33. Rxe7 {[%clk
0:00:29]} 33... Nxe7 {[%clk 0:00:17.9]} 34. Qe6+ {[%clk 0:00:27.4]} 34... Kf8
{[%clk 0:00:17]} 35. Nh4 {[%clk 0:00:27.1]} 35... Rxd5 {[%clk 0:00:10.6]} 36.
cxd5 {[%clk 0:00:27.4]} 36... Qe5 {[%clk 0:00:11.3]} 37. Qd7 {[%clk 0:00:17.4]}
37... Qxd5 {[%clk 0:00:10.5]} 38. Ng6+ {[%clk 0:00:17.7]} 1-0

[Event "*** Titled Tuesday Blitz"]
[Site "Chess.com"]
[Date "2021.04.27"]
[Round "2"]
[White "chesslh19"]
[Black "StarkAst"]
[Result "0-1"]
[WhiteElo "2282"]
[BlackElo "2506"]
[TimeControl "180+1"]
[EndTime "10:18:22 PDT"]
[Termination "StarkAst won on time"]

1. e4 {[%clk 0:02:49.4]} 1... e6 {[%clk 0:02:58.2]} 2. d4 {[%clk 0:02:48.9]}
2... d5 {[%clk 0:02:56.5]} 3. Nd2 {[%clk 0:02:49.1]} 3... Nf6 {[%clk 0:02:55.6]}
4. e5 {[%clk 0:02:49.1]} 4... Nfd7 {[%clk 0:02:56.1]} 5. Bd3 {[%clk 0:02:50]}
5... c5 {[%clk 0:02:56.7]} 6. c3 {[%clk 0:02:50.3]} 6... Nc6 {[%clk 0:02:57.4]}
7. Ne2 {[%clk 0:02:50]} 7... cxd4 {[%clk 0:02:58]} 8. cxd4 {[%clk 0:02:50.9]}
8... f6 {[%clk 0:02:58.9]} 9. exf6 {[%clk 0:02:51.6]} 9... Nxf6 {[%clk
0:02:59.8]} 10. O-O {[%clk 0:02:51]} 10... Bd6 {[%clk 0:03:00.7]} 11. Nf3 {[%clk
0:02:51.5]} 11... O-O {[%clk 0:03:01.4]} 12. Bf4 {[%clk 0:02:51]} 12... Bxf4
{[%clk 0:03:02.1]} 13. Nxf4 {[%clk 0:02:51.9]} 13... Ne4 {[%clk 0:03:02.7]} 14.
Qc1 {[%clk 0:02:50.3]} 14... Ng5 {[%clk 0:03:02.1]} 15. Nxg5 {[%clk 0:02:48.6]}
15... Qxg5 {[%clk 0:03:03]} 16. Ne2 {[%clk 0:02:49.2]} 16... Qf6 {[%clk
0:03:02.9]} 17. Qe3 {[%clk 0:02:46.1]} 17... Bd7 {[%clk 0:03:03.3]} 18. Rad1
{[%clk 0:02:09.8]} 18... Rae8 {[%clk 0:03:02.2]} 19. Bb5 {[%clk 0:02:00.7]}
19... Nb8 {[%clk 0:02:59]} 20. Bd3 {[%clk 0:01:48.4]} 20... Nc6 {[%clk 0:02:59]}
21. Bb5 {[%clk 0:01:47.9]} 21... Nb8 {[%clk 0:02:59.2]} 22. Bd3 {[%clk
0:01:47.9]} 22... e5 {[%clk 0:02:59.7]} 23. dxe5 {[%clk 0:01:46.3]} 23... Rxe5
{[%clk 0:02:58.9]} 24. Qxa7 {[%clk 0:01:37.5]} 24... Bc6 {[%clk 0:02:38.6]} 25.
Nd4 {[%clk 0:01:22.4]} 25... Rg5 {[%clk 0:02:33.9]} 26. Be2 {[%clk 0:00:59.4]}
26... Nd7 {[%clk 0:02:19.9]} 27. Nxc6 {[%clk 0:00:44.7]} 27... Qxc6 {[%clk
0:02:20.8]} 28. Qe3 {[%clk 0:00:34]} 28... Re5 {[%clk 0:02:08.6]} 29. Qd2 {[%clk
0:00:30.4]} 29... Nc5 {[%clk 0:01:51.5]} 30. Bf3 {[%clk 0:00:24.4]} 30... Ne4
{[%clk 0:01:40.6]} 31. Bxe4 {[%clk 0:00:24.5]} 31... dxe4 {[%clk 0:01:40.9]} 32.
Qe3 {[%clk 0:00:18]} 32... Ref5 {[%clk 0:01:35.8]} 33. Rd2 {[%clk 0:00:11.2]}
33... Kh8 {[%clk 0:01:25.3]} 34. h3 {[%clk 0:00:11]} 34... h6 {[%clk 0:01:23.3]}
35. Re1 {[%clk 0:00:11]} 35... Rf4 {[%clk 0:01:21.6]} 36. Rde2 {[%clk
0:00:10.2]} 36... Qg6 {[%clk 0:01:20.5]} 37. Qg3 {[%clk 0:00:09]} 37... Qf5
{[%clk 0:01:18.9]} 38. Rf1 {[%clk 0:00:06.1]} 38... Rf6 {[%clk 0:01:15.8]} 39.
Qe3 {[%clk 0:00:06.1]} 39... Rg6 {[%clk 0:01:14.4]} 40. Kh2 {[%clk 0:00:05.3]}
40... Rh4 {[%clk 0:00:56.1]} 41. Qc3 {[%clk 0:00:03.7]} 41... Kh7 {[%clk
0:00:51.6]} 42. Qe3 {[%clk 0:00:03.7]} 42... Qe5+ {[%clk 0:00:48.2]} 43. Kg1
{[%clk 0:00:02.7]} 43... Qh5 {[%clk 0:00:47]} 44. Rd2 {[%clk 0:00:01.8]} 44...
Rxh3 {[%clk 0:00:43.6]} 0-1

[Event "*** Titled Tuesday Blitz"]
[Site "Chess.com"]
[Date "2021.04.27"]
[Round "2"]
[White "elohunter1999"]
[Black "Skat2704"]
[Result "0-1"]
[WhiteElo "2483"]
[BlackElo "2687"]
[TimeControl "180+1"]
[EndTime "10:18:24 PDT"]
[Termination "Skat2704 won on time"]

1. d4 {[%clk 0:03:00.9]} 1... d5 {[%clk 0:02:58.8]} 2. c4 {[%clk 0:03:00.8]}
2... e6 {[%clk 0:02:59]} 3. Nf3 {[%clk 0:02:59.8]} 3... Nf6 {[%clk 0:02:58.7]}
4. g3 {[%clk 0:03:00.5]} 4... dxc4 {[%clk 0:02:58]} 5. Bg2 {[%clk 0:03:00.4]}
5... Nc6 {[%clk 0:02:56.8]} 6. O-O {[%clk 0:02:58.7]} 6... Rb8 {[%clk
0:02:55.1]} 7. e3 {[%clk 0:02:53.4]} 7... Be7 {[%clk 0:02:50.9]} 8. Nfd2 {[%clk
0:02:52.3]} 8... O-O {[%clk 0:02:44.7]} 9. Nxc4 {[%clk 0:02:51.8]} 9... b5
{[%clk 0:02:43]} 10. Bxc6 {[%clk 0:02:46.8]} 10... bxc4 {[%clk 0:02:41.2]} 11.
Nd2 {[%clk 0:02:45.4]} 11... Ba6 {[%clk 0:02:38.9]} 12. Qa4 {[%clk 0:02:42.5]}
12... Qc8 {[%clk 0:02:35.9]} 13. a3 {[%clk 0:02:37]} 13... c3 {[%clk 0:02:32.9]}
14. bxc3 {[%clk 0:02:34.1]} 14... Bxf1 {[%clk 0:02:32.4]} 15. Nxf1 {[%clk
0:02:34.6]} 15... Nd5 {[%clk 0:02:24.1]} 16. Bd2 {[%clk 0:02:30.2]} 16... Rb6
{[%clk 0:02:15.7]} 17. c4 {[%clk 0:02:29.7]} 17... Nf6 {[%clk 0:02:12]} 18. c5
{[%clk 0:02:25.6]} 18... Rb8 {[%clk 0:02:10.5]} 19. Bb4 {[%clk 0:02:17.9]} 19...
Nd5 {[%clk 0:02:07.7]} 20. Nd2 {[%clk 0:02:16.3]} 20... Rd8 {[%clk 0:01:59.2]}
21. Nc4 {[%clk 0:02:14.7]} 21... Bf6 {[%clk 0:01:51.5]} 22. Na5 {[%clk
0:02:00.9]} 22... Qa6 {[%clk 0:01:47.4]} 23. Rd1 {[%clk 0:01:37.6]} 23... e5
{[%clk 0:01:42.4]} 24. dxe5 {[%clk 0:01:36.3]} 24... Nxb4 {[%clk 0:01:40.9]} 25.
axb4 {[%clk 0:01:29.9]} 25... Rxd1+ {[%clk 0:01:38.8]} 26. Qxd1 {[%clk
0:01:30.8]} 26... Bxe5 {[%clk 0:01:39.5]} 27. Bb7 {[%clk 0:01:07.6]} 27... Qf6
{[%clk 0:01:37.1]} 28. Qd5 {[%clk 0:00:58.5]} 28... h6 {[%clk 0:01:32.7]} 29. b5
{[%clk 0:00:53.4]} 29... Bc3 {[%clk 0:01:30.5]} 30. Nc4 {[%clk 0:00:51.7]} 30...
Be1 {[%clk 0:01:30.4]} 31. f4 {[%clk 0:00:49.9]} 31... Bb4 {[%clk 0:01:24.5]}
32. Ne5 {[%clk 0:00:46.2]} 32... Bxc5 {[%clk 0:01:21.5]} 33. Kf2 {[%clk
0:00:25.9]} 33... Bb6 {[%clk 0:01:17.2]} 34. Kf3 {[%clk 0:00:23.4]} 34... Rd8
{[%clk 0:01:15.4]} 35. Nd7 {[%clk 0:00:23.1]} 35... Qe7 {[%clk 0:01:13.3]} 36.
Bc6 {[%clk 0:00:22.4]} 36... Qxe3+ {[%clk 0:01:13]} 37. Kg2 {[%clk 0:00:21.9]}
37... Qe2+ {[%clk 0:01:09.2]} 38. Kh3 {[%clk 0:00:21.6]} 38... Qe7 {[%clk
0:01:09]} 39. f5 {[%clk 0:00:18.8]} 39... Qg5 {[%clk 0:01:09]} 40. Qe4 {[%clk
0:00:12.1]} 40... Qh5+ {[%clk 0:01:04.8]} 41. Kg2 {[%clk 0:00:12.1]} 41... Qd1
{[%clk 0:01:00.3]} 42. f6 {[%clk 0:00:12.1]} 42... g6 {[%clk 0:00:54.9]} 43. Qe7
{[%clk 0:00:12.1]} 43... Qg1+ {[%clk 0:00:52.7]} 44. Kh3 {[%clk 0:00:11.8]}
44... Qf1+ {[%clk 0:00:53]} 45. Kh4 {[%clk 0:00:04]} 45... Qc4+ {[%clk
0:00:52.7]} 46. Be4 {[%clk 0:00:03.3]} 46... Rxd7 {[%clk 0:00:48.5]} 0-1